{"text_format":"3","workbook":"xlsx","n_sheets":3,"sheets":["เริ่มต้น","งบประมาณของขวัญและตัวติดตาม","ข้อมูล"],"not_rendered":{"charts":1,"defined_names":1},"read":"whole","date_system":"1900"}

{"sheet":"เริ่มต้น","index":0,"n_rows":7,"n_cols":2,"rows_kept":7}
[null,"เกี่ยวกับเทมเพลต"]
[null,"ใช้เทมเพลตนี้เพื่อบันทึกการซื้อของขวัญและติดตามเพื่อเทียบกับงบประมาณ"]
[null,"ใส่ชื่อครอบครัวและเพื่อนๆ รายการของขวัญ จำนวนเงินที่จัดงบประมาณและจำนวนเงินที่ใช้ไป และหมายเหตุในตาราง แล้วเลือกโอกาสและเดือนที่จัดกิจกรรม"]
[null,"แผนภูมิภาพรวมรายเดือนจะอัปเดตโดยอัตโนมัติ"]
[null,"หมายเหตุ: "]
[null,"คำแนะนำเพิ่มเติมจะอยู่ในคอลัมน์ A ในเวิร์กชีตงบประมาณของขวัญและตัวติดตาม ข้อความนี้ได้ถูกซ่อนไว้โดยตั้งใจ เมื่อต้องการเอาข้อความออก ให้เลือกคอลัมน์ A แล้วเลือก ลบ เมื่อต้องการยกเลิกการซ่อนข้อความ ให้เลือกคอลัมน์ A แล้วเปลี่ยนสีฟอนต์"]
[null,"เมื่อต้องการเรียนรู้เพิ่มเติมเกี่ยวกับตาราง ให้กด SHIFT แล้วตามด้วย F10 ภายในตาราง แล้วเลือกตัวเลือกตาราง จากนั้นเลือกข้อความแสดงแทน"]

{"sheet":"งบประมาณของขวัญและตัวติดตาม","index":1,"n_rows":10,"n_cols":13,"rows_kept":10,"merged":[[0,1,0,4],[0,5,0,12],[1,1,1,2],[2,1,2,12],[3,1,3,3]]}
["สร้างงบประมาณของขวัญและตัวติดตามส่วนบุคคลในเวิร์กชีตนี้ ชื่อของเวิร์กชีตอยู่ในเซลล์ด้านขวาและเคล็ดลับอยู่ในเซลล์ F1 คำแนะนำที่เป็นประโยชน์เกี่ยวกับวิธีใช้เวิร์กชีตนี้อยู่ในเซลล์ในคอลัมน์นี้","งบประมาณของขวัญและตัวติดตาม",{"$nulls":3},"กรอกข้อมูลให้มากที่สุดเมื่อเริ่มต้นปีใหม่แต่ละปี ใส่ชื่อครอบครัวและเพื่อนๆ เลือกโอกาสการให้ของขวัญ เลือกเดือนที่จัดกิจกรรม และพิมพ์จำนวนเงินที่คุณต้องการใช้จ่าย แต่ละคนอาจปรากฏในตารางหลายครั้งสำหรับโอกาสต่างๆ (วันเกิด วันหยุด งานเลี้ยง เป็นต้น)"]
["ป้ายชื่อภาพรวมรายเดือนอยู่ในเซลล์ด้านขวาและเคล็ดลับอยู่ในเซลล์ D2","ภาพรวมรายเดือน",null,"ใช้กราฟเพื่อดูเดือนที่กำลังจะมาถึงและวางแผนล่วงหน้า บันทึกการซื้อของคุณเพื่อติดตามและเปรียบเทียบกับงบประมาณ"]
["แผนภูมิคอลัมน์สําหรับจำนวนเงินที่จัดงบประมาณที่มีการซ้อนทับแผนภูมิเส้นสําหรับจํานวนเงินที่ใช้ไปอยู่ในเซลล์ด้านขวา","แผนภูมิคอลัมน์สําหรับจำนวนเงินที่จัดงบประมาณที่มีการซ้อนทับแผนภูมิเส้นสําหรับจํานวนเงินที่ใช้ไปอยู่ในเซลล์นี้"]
["ป้ายชื่องบประมาณของขวัญและตัวติดตามอยู่ในเซลล์ด้านขวา","งบประมาณของขวัญและตัวติดตาม"]
["ใส่รายละเอียดในตารางตัวติดตามงบประมาณโดยเริ่มตั้งแต่เซลล์ด้านขวา","ใคร","โอกาส","เดือน","จำนวนเงิน\nจัดงบประมาณไว้","จำนวนเงิน\nใช้","ของขวัญ","ลิงก์ไปยังของขวัญ","ในร้านค้า/\nออนไลน์","ซื้อแล้วใช่ไหม","ห่อของขวัญแล้วใช่ไหม","มอบให้แล้วใช่ไหม","หมายเหตุ"]
[null,"ชื่อ 1","วันเกิด","มิถุนายน",{"v":50,"d":"฿50"},{"v":30,"d":"฿30"},"รองเท้า","ผู้ขาย","ออนไลน์","ใช่","ไม่","ไม่","16/6 ตั๋วชมภาพยนตร์"]
[null,"ชื่อ 2","วันครบรอบ","เมษายน",{"v":20,"d":"฿20"},{"v":20,"d":"฿20"},"แมว","ผู้ขาย","ในร้านค้า","ไม่ใช่","ไม่","ไม่","เขาบอกว่าเขาชอบสุนัข"]
[null,"ชื่อ 3","วันหยุด","กรกฎาคม",{"v":50,"d":"฿50"},{"v":70,"d":"฿70"},"หูฟัง","ผู้ขาย","ออนไลน์","ไม่ใช่","ไม่ใช่","ไม่ใช่","ของใช้ในหอพัก"]
[null,"ชื่อ 4","วันเกิด","มกราคม",{"v":20,"d":"฿20"},{"v":30,"d":"฿30"},"เกม","ผู้ขาย","ในร้านค้า","ใช่","ใช่","ใช่"]
[null,"ชื่อ 5","งานแต่งงาน","มิถุนายน",{"v":100,"d":"฿100"},{"v":150,"d":"฿150"},"แจกันคริสตัล","ผู้ขาย","ในร้านค้า","ใช่","ใช่","ไม่"]

{"sheet":"ข้อมูล","index":2,"n_rows":13,"n_cols":8,"rows_kept":13,"hidden":true}
["โอกาส",null,"วันที่","วันที่","จํานวนเงินที่จัดงบประมาณ\nวันเกิด","จํานวนเงินที่จัดงบประมาณ\nวันหยุด","จํานวนเงินที่จัดงบประมาณ\nอื่นๆ","จำนวนเงินที่ใช้ไป"]
["วันเกิด",null,"มกราคม","ม.ค.",{"$f":"SUMIFS(BudgetTracker[จำนวนเงิน\nจัดงบประมาณไว้],BudgetTracker[เดือน],\"มกราคม\",BudgetTracker[โอกาส],\"วันเกิด\")","v":{"v":20,"d":"฿20"}},{"$f":"SUMIFS(BudgetTracker[จำนวนเงิน\nจัดงบประมาณไว้],BudgetTracker[เดือน],\"มกราคม\",BudgetTracker[โอกาส],\"วันหยุด\")","v":{"v":0,"d":"฿0"}},{"$f":"SUMIFS(BudgetTracker[จำนวนเงิน\nจัดงบประมาณไว้],BudgetTracker[เดือน],\"มกราคม\",BudgetTracker[โอกาส],\"<>วันหยุด\",BudgetTracker[โอกาส],\"<>วันเกิด\")","v":{"v":0,"d":"฿0"}},{"$f":"SUMIFS(BudgetTracker[จำนวนเงิน\nใช้],BudgetTracker[เดือน],\"มกราคม\")","v":{"v":30,"d":"฿30"}}]
["วันหยุด",null,"กุมภาพันธ์","ก.พ.",{"$f":"SUMIFS(BudgetTracker[จำนวนเงิน\nจัดงบประมาณไว้],BudgetTracker[เดือน],\"กุมภาพันธ์\",BudgetTracker[โอกาส],\"วันเกิด\")","v":{"v":0,"d":"฿0"}},{"$f":"SUMIFS(BudgetTracker[จำนวนเงิน\nจัดงบประมาณไว้],BudgetTracker[เดือน],\"กุมภาพันธ์\",BudgetTracker[โอกาส],\"วันหยุด\")","v":{"v":0,"d":"฿0"}},{"$f":"SUMIFS(BudgetTracker[จำนวนเงิน\nจัดงบประมาณไว้],BudgetTracker[เดือน],\"กุมภาพันธ์\",BudgetTracker[โอกาส],\"<>วันหยุด\",BudgetTracker[โอกาส],\"<>วันเกิด\")","v":{"v":0,"d":"฿0"}},{"$f":"SUMIFS(BudgetTracker[จำนวนเงิน\nใช้],BudgetTracker[เดือน],\"กุมภาพันธ์\")","v":{"v":0,"d":"฿0"}}]
["วันครบรอบ",null,"มีนาคม","มี.ค.",{"$f":"SUMIFS(BudgetTracker[จำนวนเงิน\nจัดงบประมาณไว้],BudgetTracker[เดือน],\"มีนาคม\",BudgetTracker[โอกาส],\"วันเกิด\")","v":{"v":0,"d":"฿0"}},{"$f":"SUMIFS(BudgetTracker[จำนวนเงิน\nจัดงบประมาณไว้],BudgetTracker[เดือน],\"มีนาคม\",BudgetTracker[โอกาส],\"วันหยุด\")","v":{"v":0,"d":"฿0"}},{"$f":"SUMIFS(BudgetTracker[จำนวนเงิน\nจัดงบประมาณไว้],BudgetTracker[เดือน],\"มีนาคม\",BudgetTracker[โอกาส],\"<>วันหยุด\",BudgetTracker[โอกาส],\"<>วันเกิด\")","v":{"v":0,"d":"฿0"}},{"$f":"SUMIFS(BudgetTracker[จำนวนเงิน\nใช้],BudgetTracker[เดือน],\"มีนาคม\")","v":{"v":0,"d":"฿0"}}]
["งานแต่งงาน",null,"เมษายน","เม.ย.",{"$f":"SUMIFS(BudgetTracker[จำนวนเงิน\nจัดงบประมาณไว้],BudgetTracker[เดือน],\"เมษายน\",BudgetTracker[โอกาส],\"วันเกิด\")","v":{"v":0,"d":"฿0"}},{"$f":"SUMIFS(BudgetTracker[จำนวนเงิน\nจัดงบประมาณไว้],BudgetTracker[เดือน],\"เมษายน\",BudgetTracker[โอกาส],\"วันหยุด\")","v":{"v":0,"d":"฿0"}},{"$f":"SUMIFS(BudgetTracker[จำนวนเงิน\nจัดงบประมาณไว้],BudgetTracker[เดือน],\"เมษายน\",BudgetTracker[โอกาส],\"<>วันหยุด\",BudgetTracker[โอกาส],\"<>วันเกิด\")","v":{"v":20,"d":"฿20"}},{"$f":"SUMIFS(BudgetTracker[จำนวนเงิน\nใช้],BudgetTracker[เดือน],\"เมษายน\")","v":{"v":20,"d":"฿20"}}]
["งานเลี้ยงสละโสดสำหรับเจ้าสาว",null,"พ.ค.","พ.ค.",{"$f":"SUMIFS(BudgetTracker[จำนวนเงิน\nจัดงบประมาณไว้],BudgetTracker[เดือน],\"พ.ค.\",BudgetTracker[โอกาส],\"วันเกิด\")","v":{"v":0,"d":"฿0"}},{"$f":"SUMIFS(BudgetTracker[จำนวนเงิน\nจัดงบประมาณไว้],BudgetTracker[เดือน],\"พ.ค.\",BudgetTracker[โอกาส],\"วันหยุด\")","v":{"v":0,"d":"฿0"}},{"$f":"SUMIFS(BudgetTracker[จำนวนเงิน\nจัดงบประมาณไว้],BudgetTracker[เดือน],\"พ.ค.\",BudgetTracker[โอกาส],\"<>วันหยุด\",BudgetTracker[โอกาส],\"<>วันเกิด\")","v":{"v":0,"d":"฿0"}},{"$f":"SUMIFS(BudgetTracker[จำนวนเงิน\nใช้],BudgetTracker[เดือน],\"พ.ค.\")","v":{"v":0,"d":"฿0"}}]
["งานรับขวัญทารกแรกเกิด",null,"มิถุนายน","มิ.ย.",{"$f":"SUMIFS(BudgetTracker[จำนวนเงิน\nจัดงบประมาณไว้],BudgetTracker[เดือน],\"มิถุนายน\",BudgetTracker[โอกาส],\"วันเกิด\")","v":{"v":50,"d":"฿50"}},{"$f":"SUMIFS(BudgetTracker[จำนวนเงิน\nจัดงบประมาณไว้],BudgetTracker[เดือน],\"มิถุนายน\",BudgetTracker[โอกาส],\"วันหยุด\")","v":{"v":0,"d":"฿0"}},{"$f":"SUMIFS(BudgetTracker[จำนวนเงิน\nจัดงบประมาณไว้],BudgetTracker[เดือน],\"มิถุนายน\",BudgetTracker[โอกาส],\"<>วันหยุด\",BudgetTracker[โอกาส],\"<>วันเกิด\")","v":{"v":100,"d":"฿100"}},{"$f":"SUMIFS(BudgetTracker[จำนวนเงิน\nใช้],BudgetTracker[เดือน],\"มิถุนายน\")","v":{"v":180,"d":"฿180"}}]
["การสําเร็จการศึกษา",null,"กรกฎาคม","ก.ค.",{"$f":"SUMIFS(BudgetTracker[จำนวนเงิน\nจัดงบประมาณไว้],BudgetTracker[เดือน],\"กรกฎาคม\",BudgetTracker[โอกาส],\"วันเกิด\")","v":{"v":0,"d":"฿0"}},{"$f":"SUMIFS(BudgetTracker[จำนวนเงิน\nจัดงบประมาณไว้],BudgetTracker[เดือน],\"กรกฎาคม\",BudgetTracker[โอกาส],\"วันหยุด\")","v":{"v":50,"d":"฿50"}},{"$f":"SUMIFS(BudgetTracker[จำนวนเงิน\nจัดงบประมาณไว้],BudgetTracker[เดือน],\"กรกฎาคม\",BudgetTracker[โอกาส],\"<>วันหยุด\",BudgetTracker[โอกาส],\"<>วันเกิด\")","v":{"v":0,"d":"฿0"}},{"$f":"SUMIFS(BudgetTracker[จำนวนเงิน\nใช้],BudgetTracker[เดือน],\"กรกฎาคม\")","v":{"v":70,"d":"฿70"}}]
["อื่นๆ",null,"สิงหาคม","ส.ค.",{"$f":"SUMIFS(BudgetTracker[จำนวนเงิน\nจัดงบประมาณไว้],BudgetTracker[เดือน],\"สิงหาคม\",BudgetTracker[โอกาส],\"วันเกิด\")","v":{"v":0,"d":"฿0"}},{"$f":"SUMIFS(BudgetTracker[จำนวนเงิน\nจัดงบประมาณไว้],BudgetTracker[เดือน],\"สิงหาคม\",BudgetTracker[โอกาส],\"วันหยุด\")","v":{"v":0,"d":"฿0"}},{"$f":"SUMIFS(BudgetTracker[จำนวนเงิน\nจัดงบประมาณไว้],BudgetTracker[เดือน],\"สิงหาคม\",BudgetTracker[โอกาส],\"<>วันหยุด\",BudgetTracker[โอกาส],\"<>วันเกิด\")","v":{"v":0,"d":"฿0"}},{"$f":"SUMIFS(BudgetTracker[จำนวนเงิน\nใช้],BudgetTracker[เดือน],\"สิงหาคม\")","v":{"v":0,"d":"฿0"}}]
[null,null,"กันยายน","ก.ย.",{"$f":"SUMIFS(BudgetTracker[จำนวนเงิน\nจัดงบประมาณไว้],BudgetTracker[เดือน],\"กันยายน\",BudgetTracker[โอกาส],\"วันเกิด\")","v":{"v":0,"d":"฿0"}},{"$f":"SUMIFS(BudgetTracker[จำนวนเงิน\nจัดงบประมาณไว้],BudgetTracker[เดือน],\"กันยายน\",BudgetTracker[โอกาส],\"วันหยุด\")","v":{"v":0,"d":"฿0"}},{"$f":"SUMIFS(BudgetTracker[จำนวนเงิน\nจัดงบประมาณไว้],BudgetTracker[เดือน],\"กันยายน\",BudgetTracker[โอกาส],\"<>วันหยุด\",BudgetTracker[โอกาส],\"<>วันเกิด\")","v":{"v":0,"d":"฿0"}},{"$f":"SUMIFS(BudgetTracker[จำนวนเงิน\nใช้],BudgetTracker[เดือน],\"กันยายน\")","v":{"v":0,"d":"฿0"}}]
[null,null,"ตุลาคม","ต.ค.",{"$f":"SUMIFS(BudgetTracker[จำนวนเงิน\nจัดงบประมาณไว้],BudgetTracker[เดือน],\"ตุลาคม\",BudgetTracker[โอกาส],\"วันเกิด\")","v":{"v":0,"d":"฿0"}},{"$f":"SUMIFS(BudgetTracker[จำนวนเงิน\nจัดงบประมาณไว้],BudgetTracker[เดือน],\"ตุลาคม\",BudgetTracker[โอกาส],\"วันหยุด\")","v":{"v":0,"d":"฿0"}},{"$f":"SUMIFS(BudgetTracker[จำนวนเงิน\nจัดงบประมาณไว้],BudgetTracker[เดือน],\"ตุลาคม\",BudgetTracker[โอกาส],\"<>วันหยุด\",BudgetTracker[โอกาส],\"<>วันเกิด\")","v":{"v":0,"d":"฿0"}},{"$f":"SUMIFS(BudgetTracker[จำนวนเงิน\nใช้],BudgetTracker[เดือน],\"ตุลาคม\")","v":{"v":0,"d":"฿0"}}]
[null,null,"พฤศจิกายน","พ.ย.",{"$f":"SUMIFS(BudgetTracker[จำนวนเงิน\nจัดงบประมาณไว้],BudgetTracker[เดือน],\"พฤศจิกายน\",BudgetTracker[โอกาส],\"วันเกิด\")","v":{"v":0,"d":"฿0"}},{"$f":"SUMIFS(BudgetTracker[จำนวนเงิน\nจัดงบประมาณไว้],BudgetTracker[เดือน],\"พฤศจิกายน\",BudgetTracker[โอกาส],\"วันหยุด\")","v":{"v":0,"d":"฿0"}},{"$f":"SUMIFS(BudgetTracker[จำนวนเงิน\nจัดงบประมาณไว้],BudgetTracker[เดือน],\"พฤศจิกายน\",BudgetTracker[โอกาส],\"<>วันหยุด\",BudgetTracker[โอกาส],\"<>วันเกิด\")","v":{"v":0,"d":"฿0"}},{"$f":"SUMIFS(BudgetTracker[จำนวนเงิน\nใช้],BudgetTracker[เดือน],\"พฤศจิกายน\")","v":{"v":0,"d":"฿0"}}]
[null,null,"ธันวาคม","ธ.ค.",{"$f":"SUMIFS(BudgetTracker[จำนวนเงิน\nจัดงบประมาณไว้],BudgetTracker[เดือน],\"ธันวาคม\",BudgetTracker[โอกาส],\"วันเกิด\")","v":{"v":0,"d":"฿0"}},{"$f":"SUMIFS(BudgetTracker[จำนวนเงิน\nจัดงบประมาณไว้],BudgetTracker[เดือน],\"ธันวาคม\",BudgetTracker[โอกาส],\"วันหยุด\")","v":{"v":0,"d":"฿0"}},{"$f":"SUMIFS(BudgetTracker[จำนวนเงิน\nจัดงบประมาณไว้],BudgetTracker[เดือน],\"ธันวาคม\",BudgetTracker[โอกาส],\"<>วันหยุด\",BudgetTracker[โอกาส],\"<>วันเกิด\")","v":{"v":0,"d":"฿0"}},{"$f":"SUMIFS(BudgetTracker[จำนวนเงิน\nใช้],BudgetTracker[เดือน],\"ธันวาคม\")","v":{"v":0,"d":"฿0"}}]